Cogmind - Beta 14 *** ADVENTURER MODE // 2024.08.08 @ 16:36:15 Player: C23 Result: Destroyed by Y-64 Sentinel with Wave Gun Performance ------------- Evolutions (5) 2500 Regions Visited (5) 1000 Robots Destroyed (48) 240 Value Destroyed (1375) 1375 Prototype IDs (1) 20 Alien Tech Used (0) 0 Bonus (0) 0 TOTAL SCORE: 5135 Bonus ------- None Cogmind --------- Core Integrity 0/1000 Matter 248/300 Energy 100/100 System Corruption 2% Temperature Cool (9) Movement Core (50) Location -5/Factory Parts ------- > --- POWER (2) -------- (None) > --- PROPULSION (5) --- (None) > --- UTILITY (7) ------ (None) > --- WEAPON (3) ------- (None) > --- INVENTORY (5) ---- (None) Peak State ------------ > --- POWER ------------ Light Nuclear Core Light Fission Core > --- PROPULSION ------- Gravmag System Gravmag System Improved Gravmag System VTOL Module VTOL Module > --- UTILITY ---------- Small Storage Unit Improved Sensor Array Core Shielding Layered Medium Armor Plating Powered Armor Improved System Shield > --- WEAPON ----------- Grenade Launcher Greatsword > --- INVENTORY -------- Ion Engine Cooled Deuterium Engine Fission Core Improved Light Armor Plating [Rating: 54] Favorites ----------- Power Ion Engine Engine Ion Engine Power Core Light Fission Core Propulsion Light Treads Treads Light Treads Wheel Subdweller Monowheel Hover Unit Improved Gravmag System Flight Unit Cesium-ion Thruster Utility Small Storage Unit Device Improved Sensor Array Storage Small Storage Unit Processor Core Analyzer Hackware Improved System Shield Protection Core Shielding Weapon Light Assault Rifle Ballistic Gun Light Assault Rifle Launcher Grenade Launcher Slashing Weapon Greatsword Build | -11 -10 -10 -8 -6 -5 ------- Run | Yrd Mat Sub Rec Fac Fac Slots Evolved 10 | . . . . 8 2 Power 1 | . . . . 1 . Propulsion 3 | . . . . 3 . Utility 5 | . . . . 4 1 Weapon 1 | . . . . . 1 Parts Attached 62 | 6 8 5 4 32 7 Power 17 | 1 1 1 . 11 3 Engine 11 | 1 1 1 . 6 2 Core 6 | . . . . 5 1 Reactor . | . . . . . . Propulsion 18 | 2 2 1 4 9 . Treads 7 | 2 2 . 2 1 . Leg . | . . . . . . Wheel 1 | . . 1 . . . Hover 4 | . . . . 4 . Flight 6 | . . . 2 4 . Utility 13 | 1 1 . . 8 3 Device 1 | . . . . 1 . Storage 1 | 1 . . . . . Processor 1 | . . . . 1 . Hackware 1 | . . . . 1 . Protection 9 | . 1 . . 5 3 Artifact . | . . . . . . Weapon 14 | 2 4 3 . 4 1 Energy Gun . | . . . . . . Energy Cannon . | . . . . . . Ballistic Gun 11 | 2 4 2 . 3 . Ballistic Cannon . | . . . . . . Launcher 2 | . . 1 . . 1 Special Weapon . | . . . . . . Impact Weapon . | . . . . . . Slashing Weapon 1 | . . . . 1 . Piercing Weapon . | . . . . . . Special Melee Weapon . | . . . . . . Unidentified Prototypes 1 | . . . . 1 . Parts Lost 28 | . 2 2 1 8 15 Power 6 | . . 1 . 2 3 Propulsion 12 | . 1 1 1 4 5 Utility 5 | . . . . . 5 Weapon 5 | . 1 . . 2 2 Highest Loss Streak 15 | . 1 2 1 3 15 To Critical Strikes 1 | . . . 1 . . Average Slot Usage (%) 90 | . 97 98 94 84 35 Engine 11 | . 14 13 14 8 . Core 1 | . . . . 3 3 Treads 15 | . 27 25 7 4 . Hover 2 | . . . . 10 7 Flight 5 | . . . 13 9 3 Device 1 | . . . . 3 1 Storage 11 | . 14 14 14 6 3 Processor 1 | . . . . 4 . Hackware 1 | . . . . 4 3 Protection 13 | . 12 14 14 13 7 Ballistic Gun 20 | . 27 23 28 11 . Launcher 1 | . . 4 . . 1 Peak Build Rating 54 | 6 8 9 13 50 54 Average Rating 16 | 4 6 8 11 37 21 On Entrance 13 | . 6 8 9 10 50 Naked Turns 88 | . . . . . 88 Heaviest Build 45 | 13 16 17 14 40 45 Greatest Support 45 | 40 40 40 45 28 28 Greatest Overweight (x) 12 | 2 . . 2 12 11 Average Overweight (x) . | . . . . 1 . Largest Inventory Capacity 8 | 8 8 8 8 8 8 Average Capacity 7 | 7 8 8 8 8 6 Most Carried 8 | 2 7 8 8 8 5 Average Carried 6 | . 5 7 7 5 2 Final Capacity 8 | 8 8 8 8 8 5 Final Carried 8 | 1 7 7 8 3 . Class Distribution -------------------- 77% | Mutant 14% | Hacker-Mutant 8% | Scavenger-Mutant Dominant Class ---------------- Mutant | -10/Materials Mutant | -10/Subcaves Mutant | -8/Recycling Hacker-Mutant | -6/Factory Mutant | -5/Factory Resources | -11 -10 -10 -8 -6 -5 ----------- Run | Yrd Mat Sub Rec Fac Fac Matter Collected 1168 | 260 196 255 95 362 . Remotely . | . . . . . . Salvage Created 1529 | . 448 226 311 451 93 Parts 117 | . 40 15 22 30 10 Haulers Intercepted . | . . . . . . Recyclers Shooed . | . . . . . . Parts Field Recycled . | . . . . . . Retrieved Matter . | . . . . . . Parts Self-Destructed 9 | . . 9 . . . Prevented . | . . . . . . Kills | -11 -10 -10 -8 -6 -5 ------- Run | Yrd Mat Sub Rec Fac Fac Combat Hostiles Destroyed 41 | . 18 6 5 9 3 Melee 2 | . . . . 1 1 Guns 37 | . 18 6 5 8 . AOE 2 | . . . . . 2 Classes Destroyed 9 | . 4 1 1 3 . Builder 1 | . . . . 1 . Turret 2 | . . 2 . . . Watcher 4 | . 3 . . . 1 Swarmer 21 | . 12 4 . 3 2 Grunt 6 | . 5 . . 1 . Sentry 7 | . . . 5 2 . Hunter 1 | . . . . 1 . Programmer 3 | . . . . 2 1 Subdweller 3 | . 1 2 . . . Best Kill Streak 7 | . 3 7 2 4 4 Combat Bots Only 5 | . 3 5 2 4 3 Max Kills in Single Turn 2 | . 2 2 1 1 2 Gunslinging 1 | . 1 . . . . Exploded 2 | . . . . . 2 Melee 1 | . . . . 1 1 Uniques/NPCs Destroyed . | . . . . . . Combat | -11 -10 -10 -8 -6 -5 -------- Run | Yrd Mat Sub Rec Fac Fac Hostile Shots Fired 668 | . 130 65 31 208 234 Missed 205 | . 27 32 10 65 71 Damage Taken 4889 | . 797 239 246 1309 2298 Core 1306 | . 82 32 80 111 1001 Absorbed by Shields . | . . . . . . Redirected to Shielding 51 | . 13 5 16 15 2 Ignored by Resistances 1463 | . 252 81 68 403 659 Regen/Repaired (Parts) 366 | . 192 . . 174 . Core Remaining (%) 69 | 100 . . 22 86 . Volleys Fired 155 | . 57 32 15 47 4 Largest 2 | . 2 2 2 2 1 Hottest 55 | . 50 55 45 50 30 Shots Fired 280 | . 114 64 30 68 4 Gun 269 | . 114 57 30 68 . Cannon . | . . . . . . Launcher 11 | . . 7 . . 4 Special . | . . . . . . Kinetic 269 | . 114 57 30 68 . Thermal . | . . . . . . Explosive 11 | . . 7 . . 4 Electromagnetic . | . . . . . . Robot Hit Streak 40 | . 16 40 17 21 3 Robot Miss Streak 4 | . 4 1 1 2 1 Penetration Max . | . . . . . . Secondary Targets 2 | . 2 . . . . Max Gunslinging Chain 1 | . 1 . . . . Shots Hit Robots 233 | . 86 58 26 59 4 Core Hits 110 | . 40 19 9 29 13 Critical Kills . | . . . . . . Critical Parts Destroyed . | . . . . . . Critical Strikes 2 | . . . . 2 . Sever 2 | . . . . 2 . Melee Attacks 5 | . . . . 4 1 Impact . | . . . . . . Slashing 5 | . . . . 4 1 Piercing . | . . . . . . Sneak Attacks . | . . . . . . Combat Hostiles . | . . . . . . Follow-up Attacks . | . . . . . . Damage Inflicted 3288 | . 725 1108 322 809 324 Guns 2599 | . 725 950 322 602 . Cannons . | . . . . . . Explosions 435 | . . 158 . . 277 Melee 254 | . . . . 207 47 Ramming . | . . . . . . Kinetic 2599 | . 725 950 322 602 . Thermal . | . . . . . . Explosive 435 | . . 158 . . 277 Electromagnetic . | . . . . . . Impact . | . . . . . . Slashing 254 | . . . . 207 47 Piercing . | . . . . . . Highest Corruption 2 | . . . . 1 2 Average Corruption 1 | . . . . 1 2 Corruption Purged . | . . . . . . Corruption Blocked . | . . . . . . Effects 6 | . . . . 4 2 Message Errors 3 | . . . . 3 . Matter Fused 1 | . . . . . 1 Heat Flow Errors 1 | . . . . . 1 Data Loss (major) 1 | . . . . 1 . Overload Shots . | . . . . . . Overflow Damage 21 | . . 17 . . 4 Projectiles . | . . . . . . Explosions 21 | . . 17 . . 4 Melee . | . . . . . . Knockbacks . | . . . . . . Impact . | . . . . . . Kinetic . | . . . . . . Secondary . | . . . . . . Self-Inflicted Damage 124 | . . 47 . . 77 Shots 6 | . . 2 . . 4 Rammed . | . . . . . . Targets Rammed . | . . . . . . Kicked . | . . . . . . Crushed . | . . . . . . Highest Temperature 195 | . 20 17 43 52 195 Average Temperature 18 | . 9 14 18 16 65 Received Heat Transfer 855 | . 228 156 135 264 72 Siege Activations . | . . . . . . Robots Corrupted . | . . . . . . Combat Hostiles . | . . . . . . Parts Fried . | . . . . . . Impact Corruptions . | . . . . . . Robots Melted . | . . . . . . Combat Hostiles . | . . . . . . Parts Melted . | . . . . . . Heat Transferred . | . . . . . . Parts Sabotaged . | . . . . . . Parts Stolen . | . . . . . . Parts Stripped . | . . . . . . Power Chain Reactions . | . . . . . . Alert | -11 -10 -10 -8 -6 -5 ------- Run | Yrd Mat Sub Rec Fac Fac Peak Influence 208 | . 208 . 45 153 149 Initial 64 | . . . 20 14 64 Average 47 | . 53 . 26 53 69 Maximum Alert Level 1 | . 1 . . . . Low Security (%) 99 | 100 97 . 100 100 100 Level 1 . | . 2 . . . . Level 2 . | . . . . . . Level 3 . | . . . . . . Level 4 . | . . . . . . Level 5 . | . . . . . . High Security . | . . . . . . Max Security . | . . . . . . Squads Dispatched 5 | . 1 . . 3 1 Investigation 2 | . 1 . . 1 . Extermination 3 | . . . . 2 1 Reinforcement . | . . . . . . Assault . | . . . . . . Garrison . | . . . . . . Intercept . | . . . . . . Searches Triggered . | . . . . . . Construction Impeded . | . . . . . . Haulers Reinforced . | . . . . . . Active Scanning Responses . | . . . . . . Cargo Convoy Interrupts . | . . . . . . Stealth | -11 -10 -10 -8 -6 -5 --------- Run | Yrd Mat Sub Rec Fac Fac Distress Signals 2 | . . . . . 2 Communications Jammed . | . . . . . . Distress Signals . | . . . . . . Times Spotted 77 | . 31 16 5 13 12 Peak Tracking Total 9 | . 5 4 2 6 9 Tactical Retreats 11 | . 6 3 . 1 1 Traps | -11 -10 -10 -8 -6 -5 ------- Run | Yrd Mat Sub Rec Fac Fac Traps Triggered 6 | . 3 . . 3 . Indirectly . | . . . . . . Trap Hack Attempts . | . . . . . . Triggered . | . . . . . . Disarmed . | . . . . . . Reprogrammed . | . . . . . . Reused . | . . . . . . Traps Extracted . | . . . . . . Installed . | . . . . . . Triggered . | . . . . . . Machines | -11 -10 -10 -8 -6 -5 ---------- Run | Yrd Mat Sub Rec Fac Fac Machines Disabled 3 | . . 3 . . . Max in Single Turn 2 | . . 2 . . . Machines Repaired . | . . . . . . Machines Dismantled . | . . . . . . Machines Sabotaged . | . . . . . . Overloaded Fab Kills . | . . . . . . Hacking | -11 -10 -10 -8 -6 -5 --------- Run | Yrd Mat Sub Rec Fac Fac Machines Accessed 16 | . 5 . 6 5 . Terminals 7 | . 4 . 1 2 . Fabricators 1 | . . . . 1 . Repair Stations 2 | . 1 . . 1 . Recycling Units 5 | . . . 5 . . Scanalyzers . | . . . . . . Garrison Access 1 | . . . . 1 . Total Hacks 36 | . 12 . 12 12 . Successful 21 | . 9 . 9 3 . Failed 15 | . 3 . 3 9 . Catastrophic 4 | . . . . 4 . Database Lockouts . | . . . . . . Manual 11 | . 5 . . 6 . Terminals 15 | . 8 . 1 6 . Fabricators 1 | . . . . 1 . Repair Stations 6 | . 4 . . 2 . Recycling Units 11 | . . . 11 . . Scanalyzers . | . . . . . . Garrison Access 3 | . . . . 3 . Terminal Hacks 6 | . 5 . 1 . . Alert Level 3 | . 2 . 1 . . Unreport Threat 1 | . 1 . . . . Transport Status 1 | . 1 . . . . Hauler Manifests 1 | . 1 . . . . Fabricator Hacks 1 | . . . . 1 . Network Status 1 | . . . . 1 . Repair Station Hacks 6 | . 4 . . 2 . Scan Component 3 | . 2 . . 1 . Repair 3 | . 2 . . 1 . Recycling Unit Hacks 8 | . . . 8 . . Report Inventory 5 | . . . 5 . . Retrieve Components 3 | . . . 3 . . Scanalyzer . | . . . . . . Garrison Access Hacks . | . . . . . . Unauthorized Hacks . | . . . . . . Terminals . | . . . . . . Fabricators . | . . . . . . Repair Stations . | . . . . . . Recycling Units . | . . . . . . Scanalyzers . | . . . . . . Garrison Access . | . . . . . . Data Cores Recovered . | . . . . . . Used . | . . . . . . Hacking Detections 8 | . 2 . 4 2 . Full Trace Events 2 | . 1 . . 1 . Feedback Events . | . . . . . . Feedback Blocked . | . . . . . . Robot Schematics Acquired . | . . . . . . Robots Built . | . . . . . . Authchips . | . . . . . . Time . | . . . . . . Total Robot Build Rating . | . . . . . . Part Schematics Acquired . | . . . . . . Parts Built . | . . . . . . Authchips . | . . . . . . Time . | . . . . . . Total Part Build Rating . | . . . . . . Parts Repaired 3 | . 2 . . 1 . Time 96 | . 52 . . 44 . Parts Recycled . | . . . . . . Recycled Matter . | . . . . . . Retrieved Matter . | . . . . . . Retrieved Components 6 | . . . 6 . . Parts Scanalyzed . | . . . . . . Part Schematics Acquired . | . . . . . . Parts Damaged . | . . . . . . Bothacking | -11 -10 -10 -8 -6 -5 ------------ Run | Yrd Mat Sub Rec Fac Fac Used RIF Installer . | . . . . . . Robots Hacked . | . . . . . . Non-combat . | . . . . . . Combat . | . . . . . . Robot Hacks Applied . | . . . . . . Relay Couplers Released . | . . . . . . Fabnet Peak Effective % . | . . . . . . Robots Rewired 1 | . . . 1 . . Allies Hacked . | . . . . . . Hacks Repelled . | . . . . . . Allies | -11 -10 -10 -8 -6 -5 -------- Run | Yrd Mat Sub Rec Fac Fac Total Allies 1 | . . . 1 . . Largest Group 1 | . . . 1 . . Highest-Rated Group 6 | . . . 6 . . Highest-Rated Ally 6 | . . . 6 . . Total Orders . | . . . . . . Ally Attacks . | . . . . . . Total Damage . | . . . . . . Kills . | . . . . . . Allies Corrupted . | . . . . . . Allies Melted . | . . . . . . Intel | -11 -10 -10 -8 -6 -5 ------- Run | Yrd Mat Sub Rec Fac Fac Robot Analysis Total . | . . . . . . Derelict Logs Recovered . | . . . . . . Drone Launches . | . . . . . . Drone Recoveries . | . . . . . . Exploration | -11 -10 -10 -8 -6 -5 ------------- Run | Yrd Mat Sub Rec Fac Fac Turns Passed 4645 | 63 1278 977 899 1176 252 Spaces Moved 2444 | 31 609 564 594 534 112 Core 43 | 6 . . . 1 36 Treads 1355 | 25 609 479 229 13 . Legs . | . . . . . . Wheels 117 | . . 85 32 . . Hover 380 | . . . . 304 76 Flight 549 | . . . 333 216 . Fastest Speed 50 | 50 160 110 110 52 50 Average Speed 149 | 150 160 152 130 168 81 Slowest Speed 650 | 160 160 160 200 650 600 Overloaded Moves . | . . . . . . Propulsion Burnouts . | . . . . . . Robots Hopped . | . . . . . . Cave-ins Triggered . | . . . . . . Exploration Rate (%) 40 | 5 94 26 95 18 4 Regions Visited 5 Branch Regions 2 Pre-discovered Areas . | . . . . . . Known Exits Taken . | . . . . . . Unknown Exits Taken 5 | 1 1 1 1 1 . Scrap Searched 3 | . . 3 . . . Spaces Dug . | . . . . . . Terrain Destroyed 26 | . 1 15 . . 10 Melee . | . . . . . . Projectile 1 | . 1 . . . . AOE 25 | . . 15 . . 10 Terrain Rammed . | . . . . . . Walls Destroyed . | . . . . . . Machines Disabled . | . . . . . . Actions | -11 -10 -10 -8 -6 -5 --------- Run | Yrd Mat Sub Rec Fac Fac Total 3187 | 48 818 620 690 745 266 Wait 453 | 5 134 14 60 101 139 Move 2439 | 30 608 563 593 533 112 Hop . | . . . . . . Pick Up 52 | 7 11 4 5 22 3 Fast Attach 2 | . . . . 2 . Attach 42 | 6 5 2 . 23 6 Detach . | . . . . . . Swap 18 | . 3 3 4 7 1 Drop 12 | . . 2 4 6 . Fire 155 | . 57 32 15 47 4 Melee 5 | . . . . 4 1 Ram . | . . . . . . Kick . | . . . . . . Crush . | . . . . . . Escape Stasis . | . . . . . . Rewire 9 | . . . 9 . . Trap . | . . . . . . Miscellaneous . | . . . . . . Route ------- -11/Scrapyard -10/Materials (discovered 5 exits: [*Mat x3] / [*Min] / [*Sub]) -10/Subcaves (discovered 2 exits: [*Mat] / *Rec) -8/Recycling -6/Factory (discovered 2 exits: [*Fac x2]) -5/Factory History --------- Turn | Location | Event 13 | -11/Scrapyard | Discovered new exit (range 15) 64 | -11/Scrapyard | Entered Materials 139 | -10/Materials | Discovered new exit (range 9) 314 | -10/Materials | Build established: Mutant 544 | -10/Materials | Discovered new exit (range 9) 612 | -10/Materials | Repaired Lgt. Assault Rifle 640 | -10/Materials | Repaired Lgt. Treads 720 | -10/Materials | Discovered new exit (range 10) 955 | -10/Materials | Discovered new exit (range 4) 1064 | -10/Materials | Derelicts attacked the area 1331 | -10/Materials | Discovered new exit (range 7) 1342 | -10/Materials | Entered Subcaves 1395 | -10/Subcaves | Discovered new exit (range 4) 1415 | -10/Subcaves | Shifting Twisted Machinery released Battle Rifle 1696 | -10/Subcaves | A swath of the cavern ceiling suddenly collapsed 1779 | -10/Subcaves | Discovered new exit (range 13) 2319 | -10/Subcaves | Entered Recycling 2320 | -8/Recycling | Met a Zionite searching for Scraptown 2680 | -8/Recycling | Discovered new exit (range 15) 2876 | -8/Recycling | Core integrity fell below 50% 3218 | -8/Recycling | Entered Factory 3218 | -6/Factory | Evolved 8 slots: Power x1, Propulsion x3, Utility x4 3721 | -6/Factory | Discovered new exit (range 14) 3771 | -6/Factory | Lost 3 parts (1p1n1w) 3800 | -6/Factory | Build established: Hacker-Mutant 3875 | -6/Factory | Found Powered Armor 4100 | -6/Factory | Lost 3 parts (1p1n1w) 4209 | -6/Factory | Repaired Powered Armor 4385 | -6/Factory | Build established: Scavenger-Mutant 4389 | -6/Factory | Discovered new exit (range 5) 4394 | -6/Factory | Entered another Factory area 4394 | -5/Factory | Evolved 2 slots: Utility x1, Weapon x1 4558 | -5/Factory | Released all parts (5) 4562 | -5/Factory | Core integrity fell below 50% 4579 | -5/Factory | Lost 15 parts (3p5n5u2w) 4623 | -5/Factory | Core integrity fell below 20% 4646 | -5/Factory | Destroyed by Y-64 Sentinel with Wave Gun Last Messages --------------- Penetrated by Slug. System corrupted: Heat flow error (+235). Slug penetrates Neutrino Reactor. Slug penetrates S-27 Virus. Slug penetrates Neutrino Reactor. Penetrated by Slug. S-27 Virus destroyed. Slug penetrates Neutrino Reactor. Neutrino Reactor explodes. S-27 Virus destroyed. Neutrino Reactor explodes. H-66 Slayer shuts down. Door malfunctions. Y-64 Sentinel IFF system glitched. H-66 Slayer destroyed. Penetrated by Slug. U-05 Engineer repairs door. Penetrated by Slug. ALERT: Rogue bot located, Programmers report to Factory Zone 2G. U-05 Engineer lays Concrete. Map ----- +----------------------------------------------------+ | ???????????????????????????????????????????? | | ???????????????????????????????????????????? | | ???????????????????????????????????????????? | | ???????????????????????????????????????????? | | ???????????????????????????????????????????? | | ???????????????????????????????????????????? | | ???????????????????????????????????????????? | | ???????????????????????????????????????????? | | ???????????????????????????????????????????? | | ???????????????????????????????????????????? | | ???????????????????????????????????????????? | | ???????????????????????????????????????????? | | ???????????????????????????????????????????? | | ???????????????????????????????? ????????? | | ???????????????????????????????? ???????? | | ???????????????????????????????? #???????? | | ???????????????????????????????? #???????? | | ??????????????????? ???????????? +???????? | | ?????????????????? ?????????? #???????? | | ??????????????????""" ????????? #???????? | | ??????????????????"R "????????# #???????? | | ????????????????????" ""???????# #???????? | | ????????????????????? ""???????# #???????? | | ?????????????????????? ??????# #???????? | | ?????????????????????###;####### #???????? | | ?????????????????????# Y @ =%[# #???????? | | ?????????????????????# *% =# #???????? | | ?????????????????????# [ u #???????? | | ?????????????????????# % #u #???????? | | ?????????????????????# = # #???????? | | ?????????+???????????########### #???????? | | ?????????# ???????????########## #???????? | | ?????????# ############ [! # #???????? | | ?????????# # !! # #???????? | | ?????????# # + #???????? | | ?????????+ # ### #???????? | | ?????????# """ / #?? #???????? | | ?????????# """ # """ #?? #???????? | | ?????????##### """ # """ #?? #???????? | | ?????????????#! # """ #?? #???????? | | ?????????????# """ # #?? #???????? | | ?????????????# ! """ ####### ##?? #???????? | | ?????????????# !*""" #?????###??? #???????? | | ?##########??# * #??????????? #???????? | | ?# #??# #???????#### ##??????? | | ?#"" #??# #???????# #??????? | | ##"T #??# ######### #??????? | | # "" #??# ]] #??????? | | # ##?# ]! #??????? | | #?# ^!* #??????? | +----------------------------------------------------+ Best States ------------- Heat Dissipation 40 Energy Generation 31 Energy Capacity 370 Matter Stores 300 Matter Capacity 300 Sight Range 16 Robot Scan Range 15 Terrain Scan Density 10 Armor Coverage 775 Resistance: KI 20 Resistance: TH 20 Resistance: EX 20 Resistance: EM 20 Resistance: I 20 Resistance: S 20 Resistance: P 20 Core Shielding 20 Evasion (%) 54 Core Analysis 6 Recoil Reduction 2 Offensive Hacking 10 Defensive Hacking 12 Item Schematics ----------------- None Robot Schematics ------------------ None Fabricated ------------ Nothing Alien Tech Used ----------------- None Achievements -------------- A New Friend Challenges ------------ None Game ------ Seed ScanTeslaSubcomponent Manual? 0 Play Time 00:50:27 Cumulative 11.9 hours Start 2024.08.08 @ 15:29:11 End 2024.08.08 @ 16:36:15 Sessions 1 Manual Loads 0 Difficulty Adventurer Special Mode None Game No. 13 Rogue 4 Adventurer 9 Explorer 0 Win Type - Total 0 Types 0/0/0/0/0/0/0/0/0 Lore% 6 Gallery% 19 Achievement% 15 Wizard Run 0 Options --------- Layout 1 ASCII 0 Keyboard 0 Movement Mouse Keybinds 0 Fullscreen 1 Font 24/Smallcaps Map View 76x35 Zoom Use 0% Tactical HUD 0 Map Filters NONE Filters NONE Steam 1 RUN: b646f8e0-eb9d-4329-a377-ebfa2ae42cb1